bitfinex/quotes_SOLUSD_20250527
["timestamp","ask_amount","ask_price","bid_price","bid_amount"]
[1748306317127,10.02889385,174.5,174.48,20.82648758]
[1748306317444,10.02889385,174.5,174.47,20.82648758]
[1748306317932,10.02889385,174.5,174.42,27.6149]
[1748306318119,10.02889385,174.5,174.48,20.82648758]
[1748306318832,10.02889385,174.5,174.49,20.82648758]
[1748306319034,7.16356434,174.5,174.49,20.82648758]
[1748306320454,2.86516532,174.51,174.49,20.82648758]
[1748306320630,2.86516532,174.51,174.5,20.82648758]
[1748306325450,10.02807862,174.51,174.46,6.1083]
[1748306325756,10.02807862,174.51,174.5,20.82648758]
[1748306325958,10.02807862,174.51,174.49,20.82648758]
[1748306328741,10.02807862,174.51,174.5,20.82648758]
[1748306330255,10.02807862,174.51,174.45,85.7]
[1748306330463,10.02807862,174.51,174.5,20.82648758]
[1748306332863,10.02807862,174.51,174.45,85.7]
[1748306333085,24.35390522,174.51,174.45,59.7]
[1748306333259,20.82648758,174.49,174.39,59.7]
[1748306333447,18.64964886,174.47,174.4,34.38]
[1748306333646,18.64964886,174.47,174.43,20.82648758]
[1748306334643,2.86516532,174.51,174.46,46.82648758]
[1748306334848,2.86516532,174.51,174.5,20.82648758]
[1748306335267,7.16185986,174.54,174.5,20.82648758]
[1748306335773,18.64964886,174.53,174.49,20.82648758]
[1748306336150,18.64964886,174.53,174.5,20.82648758]
[1748306337257,2.86500114,174.52,174.5,20.82648758]
[1748306339770,2.86500114,174.52,174.51,20.82648758]
[1748306340974,10.02653271,174.54,174.51,20.82648758]
[1748306341788,10.02653271,174.54,174.53,20.82648758]
[1748306342785,10.02653271,174.54,174.52,20.82648758]
[1748306343154,7.16185986,174.54,174.52,20.82648758]
[1748306345789,7.16185986,174.54,174.49,26.0]
[1748306345977,7.16185986,174.54,174.52,20.82648758]
[1748306347974,18.64964886,174.56,174.52,20.82648758]
[1748306349767,2.86450873,174.55,174.52,20.82648758]
[1748306350982,10.02578057,174.55,174.51,20.82648758]
[1748306351510,10.02578057,174.55,174.5,20.82648758]
[1748306351511,18.64964886,174.54,174.5,20.82648758]
[1748306351792,39.47613644,174.54,174.49,20.82648758]
[1748306352002,18.64964886,174.54,174.49,20.82648758]
[1748306352294,39.47613644,174.54,174.49,20.82648758]
[1748306352679,10.02692946,174.53,174.49,20.82648758]
[1748306353608,10.02692946,174.53,174.46,85.7]
[1748306353609,30.85341704,174.53,174.47,20.82648758]
[1748306353768,18.64964886,174.52,174.47,20.82648758]
[1748306354997,10.02807862,174.51,174.47,20.82648758]
[1748306355872,18.64964886,174.5,174.47,20.82648758]
[1748306357195,2.86549372,174.49,174.47,20.82648758]
[1748306362706,30.85571561,174.49,174.45,20.82648758]
[1748306362883,30.85571561,174.49,174.44,20.82648758]
[1748306363612,20.82648758,174.48,174.44,20.82648758]
[1748306364202,2.8658222,174.47,174.44,20.82648758]
[1748306369515,28.67945169,174.48,174.44,20.82648758]
[1748306370207,20.82648758,174.47,174.4,87.2688]
[1748306370394,20.82648758,174.44,174.37,65.82]
[1748306370597,20.82648758,174.44,174.39,20.82648758]
[1748306371518,10.03325306,174.42,174.38,20.82648758]
[1748306372019,30.85974064,174.42,174.37,20.82648758]
[1748306373221,66.69974064,174.42,174.37,20.82648758]
[1748306374099,2.86697247,174.4,174.37,20.82648758]
[1748306374403,10.03440366,174.4,174.36,46.82648758]
[1748306376301,10.03440366,174.4,174.36,20.82648758]
[1748306376508,30.86089124,174.4,174.35,20.82648758]
[1748306378745,18.64964886,174.39,174.32,27.5831]
[1748306379031,20.82648758,174.37,174.32,20.82648758]
[1748306379215,18.64964886,174.39,174.3,20.82648758]
[1748306379216,20.82648758,174.35,174.3,20.82648758]
[1748306379418,10.03843285,174.33,174.29,20.82648758]
[1748306380078,30.86492043,174.33,174.28,20.82648758]
[1748306383404,30.86492043,174.33,174.26,26.0]
[1748306383405,2.86812367,174.33,174.31,20.82648758]
[1748306385233,2.86795916,174.34,174.31,20.82648758]
[1748306387910,2.86795916,174.34,174.27,26.0]
[1748306388111,2.86795916,174.34,174.3,20.82648758]
[1748306391745,2.86795916,174.34,174.31,20.82648758]
[1748306392627,10.03785706,174.34,174.3,20.82648758]
[1748306393252,18.64964886,174.33,174.27,85.7]
[1748306393550,18.64964886,174.33,174.29,20.82648758]
[1748306393719,39.47613644,174.33,174.28,20.82648758]
[1748306393919,39.47613644,174.33,174.24,61.3038]
[1748306393920,20.82648758,174.3,174.24,61.3038]
[1748306394143,20.82648758,174.29,174.24,20.82648758]
[1748306394448,10.04131282,174.28,174.24,20.82648758]
[1748306396936,10.04131282,174.28,174.21,26.0]
[1748306397132,10.04131282,174.28,174.24,20.82648758]
[1748306397445,10.04131282,174.28,174.25,20.82648758]
[1748306397641,10.04131282,174.28,174.24,20.82648758]
[1748306400343,38.72880103,174.29,174.27,20.82648758]
[1748306400548,2.86880103,174.29,174.28,20.82648758]
[1748306401437,2.8682882,174.32,174.28,20.82648758]
[1748306401621,2.8682882,174.32,174.3,20.82648758]
[1748306402523,2.86812367,174.33,174.3,20.82648758]
[1748306403046,28.68808171,174.33,174.26,1.5883]
[1748306403227,49.51456929,174.33,174.28,20.82648758]
[1748306404450,28.68808171,174.33,174.29,20.82648758]
[1748306404952,28.68808171,174.33,174.3,20.82648758]
[1748306406651,10.03843285,174.33,174.31,20.82648758]
[1748306407656,10.03843285,174.33,174.3,20.82648758]
[1748306408028,7.17030918,174.33,174.3,20.82648758]
[1748306408228,7.17030918,174.33,174.26,1.5883]
[1748306408434,7.17030918,174.33,174.29,20.82648758]
[1748306408838,46.64644562,174.33,174.28,20.82648758]
[1748306409462,46.64644562,174.33,174.27,20.82648758]
[1748306409463,39.47613644,174.32,174.27,20.82648758]
[1748306409662,20.82648758,174.31,174.26,20.82648758]
[1748306409856,18.64964886,174.3,174.26,20.82648758]
[1748306410074,2.86878191,174.29,174.26,20.82648758]
[1748306410246,2.86878191,174.29,174.24,26.0]
[1748306410448,2.86878191,174.29,174.26,20.82648758]
[1748306410961,10.04073669,174.29,174.26,20.82648758]
[1748306411166,10.04073669,174.29,174.27,20.82648758]
[1748306412343,10.04073669,174.29,174.26,20.82648758]
[1748306413147,10.04073669,174.29,174.2,59.7]
[1748306413148,18.64964886,174.28,174.2,59.7]
[1748306413469,39.47613644,174.28,174.23,20.82648758]
[1748306413971,18.64964886,174.28,174.24,20.82648758]
[1748306414344,2.86911114,174.27,174.24,20.82648758]
[1748306414546,2.86911114,174.27,174.25,20.82648758]
[1748306414757,2.86911114,174.27,174.26,20.82648758]
[1748306414958,2.86911114,174.27,174.25,20.82648758]
[1748306416167,10.04073669,174.29,174.25,20.82648758]
[1748306418056,18.64964886,174.28,174.19,92.75942112]
[1748306418242,18.64964886,174.28,174.24,20.82648758]
[1748306419260,2.86911114,174.27,174.24,20.82648758]
[1748306420271,2.86911114,174.27,174.19,92.75942112]
[1748306420272,18.64964886,174.26,174.19,33.05942112]
[1748306420460,18.64964886,174.26,174.22,20.82648758]
[1748306420850,18.64964886,174.26,174.23,20.82648758]
[1748306421246,2.86944045,174.25,174.23,20.82648758]
[1748306421457,10.04304159,174.25,174.22,20.82648758]
[1748306421953,30.86952917,174.25,174.2,20.82648758]
[1748306422986,18.64964886,174.24,174.2,20.82648758]
[1748306423194,18.64964886,174.24,174.19,0.40182112]
[1748306423400,10.04419445,174.23,174.2,20.82648758]
[1748306425282,7.17442461,174.23,174.2,20.82648758]
[1748306425779,7.17442461,174.23,174.19,0.40182112]
[1748306425966,7.17442461,174.23,174.2,20.82648758]
[1748306426168,7.17442461,174.23,174.19,21.2283087]
[1748306426571,20.82648758,174.2,174.19,0.40182112]
[1748306426754,20.82648758,174.21,174.17,20.82648758]
[1748306426960,39.47613644,174.22,174.17,20.82648758]
[1748306427164,18.64964886,174.22,174.18,20.82648758]
[1748306428065,18.64964886,174.22,174.19,20.82648758]
[1748306428555,2.8700993,174.21,174.19,20.82648758]
[1748306429159,2.8700993,174.21,174.18,20.82648758]
[1748306430868,2.8700993,174.21,174.19,20.82648758]
[1748306431884,2.86976984,174.23,174.2,20.82648758]
[1748306432066,2.86976984,174.23,174.22,20.82648758]
[1748306432885,21.51908931,174.25,174.21,20.82648758]
[1748306433377,21.51908931,174.25,174.17,85.7]
[1748306433378,2.86944045,174.25,174.23,20.82648758]
[1748306433573,2.86944045,174.25,174.24,20.82648758]
[1748306434758,2.86911114,174.27,174.24,20.82648758]
[1748306435362,28.69153787,174.27,174.23,20.82648758]
[1748306435590,28.69153787,174.27,174.17,85.7]
[1748306435591,18.64964886,174.26,174.17,85.7]
[1748306435775,39.47613644,174.26,174.2,20.82648758]
[1748306436784,39.47613644,174.26,174.21,20.82648758]
[1748306437274,10.04304159,174.25,174.21,20.82648758]
[1748306437990,10.04304159,174.25,174.22,20.82648758]
[1748306438187,10.04304159,174.25,174.17,85.7]
[1748306438369,10.04304159,174.25,174.21,20.82648758]
[1748306438569,30.86952917,174.25,174.2,20.82648758]
[1748306439461,18.64964886,174.24,174.2,20.82648758]
[1748306439684,18.64964886,174.24,174.17,85.7]
[1748306439880,18.64964886,174.24,174.2,20.82648758]
[1748306440975,10.04304159,174.25,174.21,20.82648758]
[1748306441295,10.04304159,174.25,174.22,20.82648758]
[1748306441874,10.04304159,174.25,174.21,20.82648758]
[1748306442280,10.04304159,174.25,174.17,85.7]
[1748306442479,20.82648758,174.2,174.14,59.7]
[1748306442798,20.82648758,174.2,174.15,20.82648758]
[1748306442991,18.64964886,174.19,174.15,20.82648758]
[1748306443184,2.87059363,174.18,174.15,20.82648758]
[1748306444299,10.04707772,174.18,174.15,20.82648758]
[1748306444978,18.64964886,174.17,174.13,20.82648758]
[1748306445176,18.64964886,174.17,174.11,27.5277]
[1748306445378,10.0482315,174.16,174.13,20.82648758]
[1748306445983,10.0482315,174.16,174.11,1.5277]
[1748306446317,10.0482315,174.16,174.14,20.82648758]
[1748306447509,2.87059363,174.18,174.15,20.82648758]
[1748306447807,2.87059363,174.18,174.16,20.82648758]
[1748306448008,2.87059363,174.18,174.15,20.82648758]
[1748306449504,10.04667211,174.19,174.15,20.82648758]
[1748306449678,28.69632097,174.19,174.15,20.82648758]
[1748306450310,28.69632097,174.19,174.12,26.0]
[1748306450516,28.69632097,174.19,174.15,20.82648758]
[1748306451788,18.64964886,174.18,174.14,20.82648758]
[1748306451987,2.87075845,174.17,174.14,20.82648758]
[1748306453127,10.04765458,174.17,174.11,59.7]
[1748306453404,10.04765458,174.17,174.13,20.82648758]
[1748306453592,10.04765458,174.17,174.14,20.82648758]
[1748306454005,18.64964886,174.16,174.14,20.82648758]
[1748306454217,18.64964886,174.16,174.09,26.0]
[1748306454388,18.64964886,174.16,174.13,20.82648758]
[1748306455390,2.87108814,174.15,174.13,20.82648758]
[1748306456317,10.04880849,174.15,174.09,26.0]
[1748306456503,10.04880849,174.15,174.12,20.82648758]
[1748306456705,10.04880849,174.15,174.13,20.82648758]
[1748306457322,10.04880849,174.15,174.09,26.0]
[1748306457497,10.04880849,174.15,174.13,20.82648758]
[1748306460699,10.04880849,174.15,174.09,26.0]
[1748306460902,10.04880849,174.15,174.13,20.82648758]
[1748306463023,10.04880849,174.15,174.09,26.0]
[1748306463197,10.04880849,174.15,174.13,20.82648758]
[1748306466311,10.04880849,174.15,174.12,20.82648758]
[1748306468122,10.04880849,174.15,174.14,20.82648758]
[1748306472615,10.04880849,174.15,174.13,20.82648758]
[1748306481124,10.04880849,174.15,174.12,20.82648758]
[1748306487334,10.04880849,174.15,174.13,20.82648758]
[1748306487711,10.04880849,174.15,174.12,20.82648758]
[1748306490634,10.04880849,174.15,174.13,20.82648758]
[1748306492133,10.04880849,174.15,174.13,13.36546092]
[1748306499943,10.04880849,174.15,174.12,13.36546092]
[1748306504541,46.68880849,174.15,174.12,13.36546092]
[1748306509034,46.68880849,174.15,174.09,85.7]
[1748306509235,46.68880849,174.15,174.12,13.36546092]
[1748306510857,46.68880849,174.15,174.13,13.36546092]
[1748306511241,2.87108814,174.15,174.14,13.36546092]
[1748306511953,43.43676374,174.18,174.14,13.36546092]
[1748306512250,43.43676374,174.18,174.15,13.36546092]
[1748306512752,3.27871245,174.17,174.15,13.36546092]
[1748306514148,2.87092328,174.16,174.15,13.36546092]
[1748306515453,2.87075845,174.17,174.15,13.36546092]
[1748306515635,2.87075845,174.17,174.16,13.36546092]
[1748306516832,2.87075845,174.17,174.15,13.36546092]
[1748306517138,10.04765458,174.17,174.09,85.7]
[1748306517339,10.04765458,174.17,174.13,13.36546092]
[1748306517746,10.04765458,174.17,174.14,13.36546092]
[1748306518952,10.04765458,174.17,174.15,13.36546092]
[1748306520260,10.04765458,174.17,174.09,85.7]
[1748306520261,10.04765458,174.17,174.16,13.36546092]
[1748306520455,2.87075845,174.17,174.16,13.36546092]
[1748306521161,2.87042884,174.19,174.16,13.36546092]
[1748306521336,2.87042884,174.19,174.18,13.36546092]
[1748306521534,6.14864541,174.19,174.18,13.36546092]
[1748306522343,2.87042884,174.19,174.18,13.36546092]
[1748306524147,2.86993456,174.22,174.18,13.36546092]
[1748306524345,2.86993456,174.22,174.21,13.36546092]
[1748306524554,36.26,174.24,174.21,13.36546092]
[1748306524555,2.86979198,174.23,174.21,13.36546092]
[1748306524857,2.86964293,174.24,174.22,13.36546092]
[1748306525063,2.86964293,174.24,174.23,13.36546092]
[1748306525272,6.95268141,174.25,174.23,13.36546092]
[1748306525769,4.083204,174.25,174.24,66.8273046]
[1748306526677,2.86893288,174.29,174.24,92.8273046]
[1748306526846,2.86893288,174.29,174.28,13.36546092]
[1748306527940,2.86893288,174.29,174.28,20.84252686]
[1748306528379,2.86845275,174.31,174.28,20.84252686]
[1748306528674,2.86845275,174.31,174.3,20.84252686]
[1748306529871,10.03737817,174.35,174.3,20.84252686]
[1748306530043,10.03737817,174.35,174.34,20.84252686]
[1748306530469,10.03737817,174.35,174.27,34.44]
[1748306530770,10.03737817,174.35,174.33,20.84252686]
[1748306531273,10.03737817,174.35,174.32,20.84252686]
[1748306533060,39.49217572,174.34,174.27,59.7]
[1748306533270,20.84252686,174.33,174.29,20.84252686]
[1748306533566,20.84252686,174.33,174.28,20.84252686]
[1748306533987,39.49217572,174.34,174.29,20.84252686]
[1748306534894,10.03843285,174.33,174.29,20.84252686]
[1748306535593,10.03843285,174.33,174.3,20.84252686]
[1748306535789,10.03843285,174.33,174.31,20.84252686]
[1748306536791,2.86812367,174.33,174.32,20.84252686]
[1748306539588,10.03843285,174.33,174.28,34.42]
[1748306539792,10.03843285,174.33,174.31,20.84252686]
[1748306541268,10.03843285,174.33,174.32,20.84252686]
[1748306542591,2.86812367,174.33,174.32,20.84252686]
[1748306543266,43.28906919,174.37,174.32,20.84252686]
[1748306543267,10.03670566,174.36,174.32,20.84252686]
[1748306543473,10.03670566,174.36,174.33,20.84252686]
[1748306543672,10.03670566,174.36,174.34,20.84252686]
[1748306544687,10.03670566,174.36,174.27,85.7]
[1748306545002,10.03670566,174.36,174.33,20.84252686]
[1748306547283,2.86730129,174.38,174.35,20.84252686]
[1748306547606,2.86730129,174.38,174.37,20.84252686]
[1748306548477,2.86680809,174.41,174.37,20.84252686]
[1748306548678,2.86680809,174.41,174.4,20.84252686]
[1748306550670,18.64964886,174.4,174.37,20.84252686]
[1748306550996,18.64964886,174.4,174.36,20.84252686]
[1748306551374,18.64964886,174.4,174.33,20.84252686]
[1748306551375,20.84252686,174.38,174.33,20.84252686]
[1748306551703,36.1,174.37,174.33,20.84252686]
[1748306551873,36.1,174.37,174.34,20.84252686]
[1748306552997,2.86763019,174.36,174.34,20.84252686]
[1748306554896,2.86763019,174.36,174.33,20.84252686]
[1748306556209,2.86763019,174.36,174.3,26.0]
[1748306556210,2.86763019,174.36,174.35,20.84252686]
[1748306559207,2.74514792,174.36,174.35,20.84252686]
[1748306566816,2.74514792,174.36,174.35,80.54252686]
[1748306567000,2.86697247,174.4,174.35,80.54252686]
[1748306567318,2.86697247,174.4,174.39,20.84252686]
[1748306567755,10.03398987,174.41,174.38,20.84252686]
[1748306570120,10.03398987,174.41,174.37,20.84252686]
[1748306570907,13.29128184,174.41,174.37,20.84252686]
[1748306571222,34.1338087,174.41,174.37,20.84252686]
[1748306573140,34.1338087,174.41,174.36,20.84252686]
[1748306574621,13.29128184,174.41,174.38,20.84252686]
[1748306575743,10.03398987,174.41,174.38,20.84252686]
[1748306577643,39.49217572,174.4,174.33,59.7]
[1748306577834,39.49217572,174.4,174.3,26.0]
[1748306577835,20.84252686,174.38,174.3,26.0]
[1748306578143,20.84252686,174.38,174.33,20.84252686]
[1748306578440,20.84252686,174.39,174.33,20.84252686]
[1748306578640,20.84252686,174.39,174.34,20.84252686]
[1748306578821,10.03555453,174.38,174.34,20.84252686]
[1748306581149,10.03555453,174.38,174.35,20.84252686]
[1748306582350,10.03555453,174.38,174.36,20.84252686]
[1748306583459,2.86730129,174.38,174.37,20.84252686]
[1748306584653,10.03401047,174.41,174.37,20.84252686]
[1748306584859,10.03401047,174.41,174.4,20.84252686]
[1748306587249,10.03401047,174.41,174.39,20.84252686]
[1748306587873,2.86680809,174.41,174.4,20.84252686]
[1748306595636,2.86666788,174.42,174.4,20.84252686]
[1748306595856,2.86666788,174.42,174.41,20.84252686]
[1748306596867,2.86631506,174.44,174.41,20.84252686]
[1748306598164,10.03182201,174.45,174.41,20.84252686]
[1748306598355,10.03182201,174.45,174.43,20.84252686]
[1748306598559,10.03182201,174.45,174.42,20.84252686]
[1748306600177,10.03182201,174.45,174.41,20.84252686]
[1748306600551,45.20510266,174.45,174.38,59.7]
[1748306600774,20.84252686,174.44,174.39,20.84252686]
[1748306601858,20.84252686,174.43,174.38,20.84252686]
[1748306602359,20.84252686,174.39,174.35,20.84252686]
[1748306602549,2.86730129,174.38,174.35,20.84252686]
[1748306602747,2.86730129,174.38,174.34,20.84252686]
[1748306602949,10.03555453,174.38,174.34,20.84252686]
[1748306603743,10.03555453,174.38,174.35,20.84252686]
[1748306605299,10.03555453,174.38,174.31,61.2926]
[1748306605449,10.03555453,174.38,174.34,20.84252686]
[1748306605642,13.30244829,174.38,174.34,20.84252686]
[1748306606060,13.30244829,174.38,174.33,20.84252686]
[1748306606061,34.14497515,174.38,174.33,20.84252686]
[1748306606260,34.14497515,174.38,174.28,121.64]
[1748306606261,39.49217572,174.37,174.28,121.64]
[1748306606462,48.48148163,174.38,174.34,20.84252686]
[1748306606759,45.21458787,174.38,174.34,20.84252686]
[1748306610683,45.21458787,174.38,174.33,20.84252686]
[1748306612688,45.21458787,174.38,174.29,34.4]
[1748306612905,45.21458787,174.38,174.33,20.84252686]
[1748306617714,20.84252686,174.37,174.29,94.1]
[1748306617869,20.84252686,174.36,174.31,20.84252686]
[1748306618182,20.84252686,174.36,174.29,94.1]
[1748306618376,20.84252686,174.36,174.31,20.84252686]
[1748306619780,10.03728132,174.35,174.31,20.84252686]
[1748306620384,10.03728132,174.35,174.29,59.7]
[1748306620570,10.03728132,174.35,174.31,20.84252686]
[1748306622198,10.03728132,174.35,174.29,59.7]
[1748306622492,10.03728132,174.35,174.31,20.84252686]
[1748306625701,10.03728132,174.35,174.3,20.84252686]
[1748306625702,45.2187815,174.35,174.3,20.84252686]
[1748306626000,20.84252686,174.34,174.29,80.54252686]
[1748306626175,20.84252686,174.34,174.29,20.84252686]
[1748306626881,20.84252686,174.33,174.26,85.7]
[1748306627089,20.84252686,174.33,174.28,20.84252686]
[1748306627479,45.2187815,174.35,174.3,20.84252686]
[1748306627669,34.14887113,174.35,174.3,20.84252686]
[1748306629897,30.87980818,174.35,174.3,20.84252686]
[1748306630318,10.03728132,174.35,174.32,20.84252686]
[1748306630604,10.03728132,174.35,174.33,20.84252686]
[1748306630806,10.03728132,174.35,174.31,20.84252686]
[1748306635129,10.03728132,174.35,174.32,20.84252686]
[1748306636110,7.16948666,174.35,174.32,20.84252686]
[1748306639521,7.16948666,174.35,174.27,87.3385]
[1748306639722,7.16948666,174.35,174.3,20.84252686]
[1748306640025,7.16948666,174.35,174.31,20.84252686]
[1748306640796,10.03728132,174.35,174.31,20.84252686]
[1748306643129,10.03728132,174.35,174.27,27.6385]
[1748306643130,30.87980818,174.35,174.27,27.6385]
[1748306643297,39.49217572,174.34,174.29,20.84252686]
[1748306644605,42.75712517,174.34,174.29,20.84252686]
[1748306645726,10.03843285,174.33,174.29,20.84252686]
[1748306648701,10.03843285,174.33,174.3,20.84252686]
[1748306653919,10.03843285,174.33,174.3,13.33957497]
[1748306654430,10.03843285,174.33,174.27,27.6385]
[1748306654431,2.86795916,174.34,174.32,13.33957497]
[1748306654637,2.86795916,174.34,174.33,13.33957497]
[1748306655711,2.86795916,174.34,174.32,13.33957497]
[1748306656118,2.86795916,174.34,174.31,13.33957497]
[1748306657242,10.03785706,174.34,174.29,34.42]
[1748306657417,10.03785706,174.34,174.33,13.33957497]
[1748306657930,10.03785706,174.34,174.33,20.83634049]
[1748306658321,10.03785706,174.34,174.32,20.83634049]
[1748306659635,10.03785706,174.34,174.29,94.12]
[1748306659846,10.03785706,174.34,174.32,20.83634049]
[1748306665239,3.27047992,174.36,174.32,20.83634049]
[1748306665240,6.13826874,174.36,174.33,20.83634049]
[1748306665553,6.13826874,174.36,174.35,20.83634049]
[1748306666416,2.86778882,174.36,174.35,20.83634049]
[1748306668331,3.27145204,174.39,174.35,20.83634049]
[1748306668332,2.86730129,174.38,174.35,20.83634049]
[1748306669351,10.0346751,174.4,174.35,20.83634049]
[1748306669846,10.0346751,174.4,174.33,20.83634049]
[1748306669847,20.83634049,174.38,174.33,20.83634049]
[1748306670052,39.48598935,174.39,174.34,20.83634049]
[1748306670650,3.27145204,174.38,174.34,20.83634049]
[1748306671137,2.86746573,174.37,174.34,20.83634049]
[1748306672646,10.03613006,174.37,174.33,20.83634049]
[1748306676350,10.03613006,174.37,174.29,87.2126]
[1748306676526,10.03613006,174.37,174.33,20.83634049]
[1748306677951,10.03613006,174.37,174.33,13.33538903]
[1748306678326,2.86746573,174.37,174.36,13.33538903]
[1748306679649,10.03613006,174.37,174.32,34.4]
[1748306679858,10.03613006,174.37,174.33,13.33538903]
[1748306684362,10.03613006,174.37,174.29,87.2126]
[1748306684537,10.03613006,174.37,174.33,13.33538903]
[1748306689065,23.37151909,174.37,174.32,13.33538903]
[1748306689446,23.37151909,174.37,174.29,121.6126]
[1748306689668,10.03613006,174.37,174.33,13.33538903]
[1748306689872,10.03613006,174.37,174.34,13.33538903]
[1748306691751,10.03613006,174.37,174.33,13.33538903]
[1748306692565,18.64964886,174.36,174.31,13.33538903]
[1748306693073,31.98503789,174.36,174.31,13.33538903]
[1748306693254,10.03728132,174.35,174.31,13.33538903]
[1748306694962,10.03728132,174.35,174.29,1.5126]
[1748306695164,13.33538903,174.34,174.29,13.33538903]
[1748306695403,23.37382188,174.33,174.25,1.5044]
[1748306695667,23.37382188,174.33,174.28,13.33538903]
[1748306697044,23.37382188,174.33,174.29,13.33538903]
[1748306698071,23.37382188,174.33,174.25,27.5044]
[1748306698368,26.64513607,174.33,174.29,13.33538903]
[1748306698564,13.30974704,174.33,174.25,27.5044]
[1748306698753,26.64513607,174.33,174.28,13.33538903]
[1748306699349,62.58513607,174.33,174.28,13.33538903]
[1748306700252,2.86845275,174.31,174.28,13.33538903]
[1748306700874,2.86845275,174.31,174.3,13.33538903]
[1748306702472,2.8682882,174.32,174.3,13.33538903]
[1748306702688,2.8682882,174.32,174.31,13.33538903]
[1748306704975,10.03694524,174.36,174.31,13.33538903]
[1748306705170,10.03694524,174.36,174.33,13.33538903]
[1748306705364,10.03694524,174.36,174.35,13.33538903]
[1748306705365,2.86763019,174.36,174.35,13.33538903]
[1748306707271,2.86763019,174.36,174.3,1.5518]
[1748306707476,2.86763019,174.36,174.35,13.33538903]
[1748306707947,2.86763019,174.36,174.35,20.82650216]
[1748306711277,2.8674837,174.37,174.35,20.82650216]
[1748306711476,2.86734099,174.38,174.36,20.82650216]
[1748306711680,2.86734099,174.38,174.37,20.82650216]
[1748306712066,6.13669174,174.39,174.37,20.82650216]
[1748306712264,6.13669174,174.39,174.38,20.82650216]
[1748306712468,2.86715266,174.39,174.38,20.82650216]
[1748306713281,2.86697247,174.4,174.38,20.82650216]
[1748306713581,2.86697247,174.4,174.32,40.13650246]
[1748306713582,2.86697247,174.4,174.35,26.0]
[1748306713778,2.86697247,174.4,174.39,20.82650216]
[1748306715264,2.86697247,174.4,174.35,26.0]
[1748306715265,10.03440366,174.4,174.33,34.4]
[1748306715461,20.82650216,174.39,174.34,20.82650216]
[1748306715684,18.64964886,174.38,174.34,20.82650216]
[1748306715977,39.47615102,174.38,174.33,20.82650216]
[1748306716372,39.47615102,174.38,174.32,20.82650216]
[1748306716575,20.82650216,174.37,174.32,20.82650216]
[1748306716775,39.47615102,174.38,174.34,20.82650216]
[1748306717069,42.7470754,174.38,174.34,20.82650216]
[1748306717390,2.86746573,174.37,174.34,20.82650216]
[1748306717768,10.03613006,174.37,174.35,20.82650216]
[1748306721696,24.37345872,174.37,174.3,59.7]
[1748306721904,10.03728132,174.35,174.31,20.82650216]
[1748306722192,10.03728132,174.35,174.32,20.82650216]
[1748306722899,10.03728132,174.35,174.27,26.0]
[1748306723079,30.86378348,174.35,174.27,26.0]
[1748306723283,30.86378348,174.35,174.31,20.82650216]
[1748306724581,10.03728132,174.35,174.31,20.82650216]
[1748306726602,45.2027568,174.35,174.3,20.82650216]
[1748306727613,48.47272795,174.35,174.3,20.82650216]
[1748306728502,48.47272795,174.35,174.27,26.0]
[1748306728679,48.47272795,174.35,174.3,20.82650216]
[1748306729381,27.64622579,174.35,174.3,20.82650216]
[1748306729581,27.64622579,174.35,174.31,20.82650216]
[1748306730102,3.26997115,174.34,174.31,20.82650216]
[1748306730903,27.64622579,174.35,174.31,20.82650216]
[1748306731282,13.30725247,174.35,174.32,20.82650216]
[1748306731879,13.30725247,174.35,174.33,20.82650216]
[1748306732701,6.13776581,174.35,174.34,20.82650216]
[1748306732940,3.26997115,174.35,174.34,22.48540216]
[1748306733211,4.083204,174.38,174.34,22.48540216]
[1748306733507,4.083204,174.38,174.37,20.82650216]
[1748306734515,60.31121844,174.41,174.37,20.82650216]
[1748306734683,60.31121844,174.41,174.4,20.82650216]
[1748306734883,24.37121844,174.41,174.4,20.82650216]
[1748306736208,2.86665727,174.42,174.4,20.82650216]
[1748306736411,2.86665727,174.42,174.41,20.82650216]
[1748306736791,2.86615075,174.45,174.41,20.82650216]
[1748306738118,2.86615075,174.45,174.44,20.82650216]
[1748306738413,35.94,174.46,174.44,20.82650216]
[1748306738414,38.80601486,174.46,174.44,20.82650216]
[1748306738611,38.80601486,174.46,174.45,20.82650216]
[1748306742995,2.86601486,174.46,174.45,20.82650216]
[1748306743892,10.02885369,174.5,174.45,20.82650216]
[1748306744093,10.02885369,174.5,174.47,20.82650216]
[1748306744706,10.02885369,174.5,174.48,20.82650216]
[1748306744925,10.02885369,174.5,174.43,34.4]
[1748306744926,10.02885369,174.5,174.49,20.82650216]
[1748306745221,2.86532951,174.5,174.49,20.82650216]
[1748306752526,10.02865329,174.5,174.48,20.82650216]
[1748306753029,10.02865329,174.5,174.47,20.82650216]
[1748306753625,10.02865329,174.5,174.48,20.82650216]
[1748306758345,10.02865329,174.5,174.47,20.82650216]
[1748306760834,10.02865329,174.5,174.48,20.82650216]
[1748306761243,10.02865329,174.5,174.49,20.82650216]
[1748306762634,10.02865329,174.5,174.48,20.82650216]
[1748306765244,10.02865329,174.5,174.43,93.98]